[Event "Titled Tuesday Blitz July 11 Early 2023"]
[White "Tristan, Leonardo"]
[Black "Devaev, Alexander"]
[WhiteFideId "113816"]
[BlackFideId "4169395"]
[WhiteElo "2773"]
[BlackElo "2465"]
[Result "1-0"]
[Round "1"]
[TimeControl "180+2"]
[Date "2023.07.11"]
[WhiteClock "0:02:28"]
[BlackClock "0:02:22"]
[Board "56"]

1. d4 {[%clk 0:02:58]}  Nf6 {[%clk 0:02:59]} 2. Nf3 {[%clk 0:02:58]}  e6 {[%clk 0:03:00]} 3. Bf4 {[%clk 0:02:58]}  c5 {[%clk 0:02:59]} 4. c3 {[%clk 0:02:57]}  d5 {[%clk 0:02:57]} 5. e3 {[%clk 0:02:57]}  Bd6 {[%clk 0:02:57]} 6. Bb5+ {[%clk 0:02:56]}  Nc6 {[%clk 0:02:56]} 7. Bg3 {[%clk 0:02:56]}  Qc7 {[%clk 0:02:51]} 8. dxc5 {[%clk 0:02:56]}  Bxg3 {[%clk 0:02:50]} 9. hxg3 {[%clk 0:02:57]}  O-O {[%clk 0:02:50]} 10. Nbd2 {[%clk 0:02:46]}  e5 {[%clk 0:02:49]} 11. b4 {[%clk 0:02:41]}  Bg4 {[%clk 0:02:45]} 12. Be2 {[%clk 0:02:38]}  a5 {[%clk 0:02:38]} 13. a3 {[%clk 0:02:36]}  e4 {[%clk 0:02:26]} 14. Nd4 {[%clk 0:02:31]}  Bf3 {[%clk 0:02:27]} 15. gxf3 {[%clk 0:02:30]}  exf3 {[%clk 0:02:22]} 16. Bxf3 {[%clk 0:02:28]} 1-0


[Site "https://www.chess.com"]

[Event "Titled Tuesday Blitz July 11 Early 2023"]
[White "Schmakel, Sam"]
[Black "Flynn, Jacob"]
[WhiteFideId "2039311"]
[BlackFideId "2509393"]
[WhiteElo "2770"]
[BlackElo "2462"]
[Result "1-0"]
[Round "1"]
[TimeControl "180+2"]
[Date "2023.07.11"]
[WhiteClock "0:00:08"]
[BlackClock "0:00:01"]
[Board "58"]

1. d4 {[%clk 0:02:58]}  Nf6 {[%clk 0:02:58]} 2. c4 {[%clk 0:02:57]}  e6 {[%clk 0:02:59]} 3. Nf3 {[%clk 0:02:57]}  d5 {[%clk 0:02:59]} 4. Nc3 {[%clk 0:02:56]}  c6 {[%clk 0:02:59]} 5. g3 {[%clk 0:02:50]}  dxc4 {[%clk 0:02:57]} 6. Bg2 {[%clk 0:02:50]}  b5 {[%clk 0:02:54]} 7. O-O {[%clk 0:02:49]}  Bb7 {[%clk 0:02:53]} 8. Ne5 {[%clk 0:02:28]}  Qb6 {[%clk 0:02:52]} 9. a4 {[%clk 0:02:27]}  Nbd7 {[%clk 0:02:49]} 10. Nxd7 {[%clk 0:02:16]}  Nxd7 {[%clk 0:02:46]} 11. b3 {[%clk 0:02:12]}  cxb3 {[%clk 0:02:25]} 12. Qxb3 {[%clk 0:02:04]}  a6 {[%clk 0:02:08]} 13. Be3 {[%clk 0:01:44]}  Qc7 {[%clk 0:01:52]} 14. axb5 {[%clk 0:01:39]}  cxb5 {[%clk 0:01:47]} 15. Nxb5 {[%clk 0:01:35]}  axb5 {[%clk 0:01:37]} 16. Rxa8+ {[%clk 0:01:36]}  Bxa8 {[%clk 0:01:37]} 17. Bxa8 {[%clk 0:01:37]}  Be7 {[%clk 0:01:05]} 18. Rc1 {[%clk 0:01:14]}  Qd8 {[%clk 0:01:05]} 19. Bc6 {[%clk 0:01:11]}  O-O {[%clk 0:01:05]} 20. Qxb5 {[%clk 0:01:11]}  Nf6 {[%clk 0:01:04]} 21. Bf3 {[%clk 0:01:08]}  Nd5 {[%clk 0:00:56]} 22. Bxd5 {[%clk 0:00:55]}  Qxd5 {[%clk 0:00:32]} 23. Qxd5 {[%clk 0:00:54]}  exd5 {[%clk 0:00:33]} 24. Bf4 {[%clk 0:00:48]}  g5 {[%clk 0:00:25]} 25. Bd2 {[%clk 0:00:15]}  Bf6 {[%clk 0:00:13]} 26. e3 {[%clk 0:00:14]}  Rd8 {[%clk 0:00:13]} 27. g4 {[%clk 0:00:14]}  Kf8 {[%clk 0:00:09]} 28. Rc7 {[%clk 0:00:14]}  Ke8 {[%clk 0:00:08]} 29. Bb4 {[%clk 0:00:13]}  Rd7 {[%clk 0:00:07]} 30. Rc8+ {[%clk 0:00:13]}  Rd8 {[%clk 0:00:07]} 31. Rc6 {[%clk 0:00:14]}  Be7 {[%clk 0:00:06]} 32. Bxe7 {[%clk 0:00:13]}  Kxe7 {[%clk 0:00:07]} 33. Rh6 {[%clk 0:00:13]}  Rh8 {[%clk 0:00:07]} 34. Kg2 {[%clk 0:00:13]}  f6 {[%clk 0:00:06]} 35. Kg3 {[%clk 0:00:13]}  Kf7 {[%clk 0:00:06]} 36. h4 {[%clk 0:00:14]}  gxh4+ {[%clk 0:00:06]} 37. Rxh4 {[%clk 0:00:11]}  Kg6 {[%clk 0:00:06]} 38. Kf4 {[%clk 0:00:11]}  Re8 {[%clk 0:00:06]} 39. f3 {[%clk 0:00:10]}  Rd8 {[%clk 0:00:05]} 40. Rh1 {[%clk 0:00:10]}  h6 {[%clk 0:00:05]} 41. Rb1 {[%clk 0:00:10]}  Rd7 {[%clk 0:00:05]} 42. Rb6 {[%clk 0:00:10]}  Rd8 {[%clk 0:00:04]} 43. Kg3 {[%clk 0:00:10]}  Rd7 {[%clk 0:00:05]} 44. Kf2 {[%clk 0:00:11]}  Rd8 {[%clk 0:00:05]} 45. Ke2 {[%clk 0:00:11]}  Rd7 {[%clk 0:00:04]} 46. Kd3 {[%clk 0:00:10]}  Rd8 {[%clk 0:00:05]} 47. f4 {[%clk 0:00:07]}  h5 {[%clk 0:00:04]} 48. gxh5+ {[%clk 0:00:07]}  Kf5 {[%clk 0:00:02]} 49. h6 {[%clk 0:00:05]}  Rh8 {[%clk 0:00:02]} 50. Rd6 {[%clk 0:00:06]}  Rxh6 {[%clk 0:00:02]} 51. Rxd5+ {[%clk 0:00:06]}  Ke6 {[%clk 0:00:03]} 52. Ra5 {[%clk 0:00:06]}  Rh1 {[%clk 0:00:03]} 53. Ke4 {[%clk 0:00:06]}  Rh3 {[%clk 0:00:02]} 54. Ra6+ {[%clk 0:00:06]}  Kf7 {[%clk 0:00:03]} 55. d5 {[%clk 0:00:05]}  Rh1 {[%clk 0:00:03]} 56. Kf5 {[%clk 0:00:05]}  Ke7 {[%clk 0:00:02]} 57. Re6+ {[%clk 0:00:04]}  Kd7 {[%clk 0:00:02]} 58. Rxf6 {[%clk 0:00:04]}  Rh5+ {[%clk 0:00:02]} 59. Ke4 {[%clk 0:00:05]}  Rh1 {[%clk 0:00:03]} 60. Rf5 {[%clk 0:00:05]}  Ke7 {[%clk 0:00:03]} 61. Re5+ {[%clk 0:00:06]}  Kd6 {[%clk 0:00:04]} 62. Re6+ {[%clk 0:00:06]}  Kd7 {[%clk 0:00:05]} 63. Ra6 {[%clk 0:00:07]}  Rc1 {[%clk 0:00:04]} 64. Ke5 {[%clk 0:00:06]}  Rc4 {[%clk 0:00:04]} 65. e4 {[%clk 0:00:07]}  Ke7 {[%clk 0:00:05]} 66. Ra7+ {[%clk 0:00:07]}  Ke8 {[%clk 0:00:05]} 67. d6 {[%clk 0:00:07]}  Rb4 {[%clk 0:00:04]} 68. Kf5 {[%clk 0:00:08]}  Rb6 {[%clk 0:00:03]} 69. e5 {[%clk 0:00:08]}  Rb1 {[%clk 0:00:03]} 70. Ke6 {[%clk 0:00:08]}  Rb8 {[%clk 0:00:01]} 71. Rh7 {[%clk 0:00:08]} 1-0


[Site "https://www.chess.com"]

[Event "Titled Tuesday Blitz July 11 Early 2023"]
[White "Boruchovsky, Avital"]
[Black "Begunov, Konstantin"]
[WhiteFideId "2800055"]
[BlackFideId "4118510"]
[WhiteElo "2749"]
[BlackElo "2452"]
[Result "1-0"]
[Round "1"]
[TimeControl "180+2"]
[Date "2023.07.11"]
[WhiteClock "0:02:04"]
[BlackClock "0:00:26"]
[Board "64"]

1. d4 {[%clk 0:02:54]}  d5 {[%clk 0:02:59]} 2. Nc3 {[%clk 0:02:55]}  Bf5 {[%clk 0:02:58]} 3. Bf4 {[%clk 0:02:55]}  e6 {[%clk 0:02:58]} 4. Nf3 {[%clk 0:02:52]}  Nf6 {[%clk 0:02:57]} 5. Ne5 {[%clk 0:02:49]}  Ne4 {[%clk 0:02:51]} 6. Nxe4 {[%clk 0:02:49]}  Bxe4 {[%clk 0:02:51]} 7. f3 {[%clk 0:02:46]}  Bf5 {[%clk 0:02:49]} 8. g4 {[%clk 0:02:41]}  f6 {[%clk 0:02:33]} 9. gxf5 {[%clk 0:02:40]}  fxe5 {[%clk 0:02:33]} 10. Bxe5 {[%clk 0:02:39]}  exf5 {[%clk 0:02:32]} 11. Qd3 {[%clk 0:02:39]}  Qh4+ {[%clk 0:02:16]} 12. Bg3 {[%clk 0:02:37]}  Qe7 {[%clk 0:02:01]} 13. Qxf5 {[%clk 0:02:34]}  Qb4+ {[%clk 0:01:59]} 14. c3 {[%clk 0:02:31]}  Qxb2 {[%clk 0:01:54]} 15. Qc8+ {[%clk 0:02:26]}  Kf7 {[%clk 0:01:44]} 16. Bh3 {[%clk 0:02:24]}  Qxc3+ {[%clk 0:01:24]} 17. Kf1 {[%clk 0:02:23]}  Be7 {[%clk 0:01:00]} 18. Be6+ {[%clk 0:02:11]}  Kg6 {[%clk 0:00:53]} 19. Qxh8 {[%clk 0:02:08]}  Qxa1+ {[%clk 0:00:53]} 20. Kg2 {[%clk 0:02:08]}  Qxd4 {[%clk 0:00:48]} 21. Qe8+ {[%clk 0:02:07]}  Kf6 {[%clk 0:00:37]} 22. Qf7+ {[%clk 0:02:07]}  Kg5 {[%clk 0:00:34]} 23. h4+ {[%clk 0:02:04]}  Kh6 {[%clk 0:00:26]} 24. Bf4+ {[%clk 0:02:04]} 1-0


[Site "https://www.chess.com"]

[Event "Titled Tuesday Blitz July 11 Early 2023"]
[White "Itkis, Boris"]
[Black "Mahdavi, Reza"]
[WhiteFideId "1209167"]
[BlackFideId "12595926"]
[WhiteElo "2447"]
[BlackElo "2748"]
[Result "0-1"]
[Round "1"]
[TimeControl "180+2"]
[Date "2023.07.11"]
[WhiteClock "0:00:00"]
[BlackClock "0:00:45"]
[Board "65"]

1. c4 {[%clk 0:03:00]}  e5 {[%clk 0:02:59]} 2. Nc3 {[%clk 0:02:59]}  Nf6 {[%clk 0:02:59]} 3. Nf3 {[%clk 0:02:59]}  Nc6 {[%clk 0:02:48]} 4. e4 {[%clk 0:02:57]}  Bc5 {[%clk 0:01:46]} 5. Nxe5 {[%clk 0:02:56]}  Nxe5 {[%clk 0:01:43]} 6. d4 {[%clk 0:02:55]}  Bb4 {[%clk 0:01:44]} 7. dxe5 {[%clk 0:02:53]}  Nxe4 {[%clk 0:01:45]} 8. Qf3 {[%clk 0:02:53]}  Nxc3 {[%clk 0:01:43]} 9. bxc3 {[%clk 0:02:53]}  Ba5 {[%clk 0:01:44]} 10. Bf4 {[%clk 0:02:46]}  O-O {[%clk 0:01:38]} 11. O-O-O {[%clk 0:02:42]}  Qe7 {[%clk 0:01:34]} 12. Kb2 {[%clk 0:02:42]}  Bb6 {[%clk 0:01:30]} 13. Bd3 {[%clk 0:02:24]}  a5 {[%clk 0:01:19]} 14. h4 {[%clk 0:02:07]}  a4 {[%clk 0:01:17]} 15. h5 {[%clk 0:02:00]}  a3+ {[%clk 0:01:07]} 16. Ka1 {[%clk 0:01:52]}  Ra5 {[%clk 0:01:08]} 17. Qe4 {[%clk 0:01:20]}  f5 {[%clk 0:01:06]} 18. Qf3 {[%clk 0:00:57]}  c6 {[%clk 0:00:53]} 19. g4 {[%clk 0:00:51]}  d5 {[%clk 0:00:49]} 20. exd6 {[%clk 0:00:08]}  Qf6 {[%clk 0:00:45]} 21. Bc2 {[%clk 0:00:04]}  fxg4 {[%clk 0:00:44]} 22. Qd3 {[%clk 0:00:05]}  Bf5 {[%clk 0:00:44]} 23. Qxf5 {[%clk 0:00:00]}  Rxf5 {[%clk 0:00:45]} 0-1


[Site "https://www.chess.com"]

[Event "Titled Tuesday Blitz July 11 Early 2023"]
[White "Preotu, Razvan"]
[Black "Zheenbekov, Nurgazy"]
[WhiteFideId "2613280"]
[BlackFideId "13800485"]
[WhiteElo "2747"]
[BlackElo "2447"]
[Result "1-0"]
[Round "1"]
[TimeControl "180+2"]
[Date "2023.07.11"]
[WhiteClock "0:00:12"]
[BlackClock "0:00:00"]
[Board "66"]

1. e4 {[%clk 0:03:00]}  e5 {[%clk 0:02:58]} 2. Nf3 {[%clk 0:03:01]}  Nc6 {[%clk 0:02:58]} 3. Bc4 {[%clk 0:03:01]}  Nf6 {[%clk 0:02:57]} 4. d3 {[%clk 0:03:01]}  Be7 {[%clk 0:02:57]} 5. O-O {[%clk 0:03:01]}  O-O {[%clk 0:02:57]} 6. Re1 {[%clk 0:03:01]}  d6 {[%clk 0:02:56]} 7. a4 {[%clk 0:03:01]}  a6 {[%clk 0:02:53]} 8. c3 {[%clk 0:02:44]}  h6 {[%clk 0:02:46]} 9. h3 {[%clk 0:02:43]}  Be6 {[%clk 0:02:46]} 10. Nbd2 {[%clk 0:02:42]}  Re8 {[%clk 0:02:43]} 11. Bxe6 {[%clk 0:02:42]}  fxe6 {[%clk 0:02:43]} 12. b4 {[%clk 0:02:38]}  Rf8 {[%clk 0:02:41]} 13. Nb3 {[%clk 0:02:20]}  Qe8 {[%clk 0:02:32]} 14. Be3 {[%clk 0:02:09]}  Nh5 {[%clk 0:02:27]} 15. b5 {[%clk 0:02:06]}  Nb8 {[%clk 0:02:24]} 16. Rb1 {[%clk 0:01:32]}  axb5 {[%clk 0:02:21]} 17. axb5 {[%clk 0:01:33]}  Nd7 {[%clk 0:02:20]} 18. d4 {[%clk 0:01:33]}  Nf4 {[%clk 0:02:11]} 19. Bxf4 {[%clk 0:01:23]}  Rxf4 {[%clk 0:02:11]} 20. Nbd2 {[%clk 0:01:20]}  Qg6 {[%clk 0:02:07]} 21. Qb3 {[%clk 0:01:16]}  Raf8 {[%clk 0:02:04]} 22. Kh1 {[%clk 0:01:13]}  Kh8 {[%clk 0:01:57]} 23. Ra1 {[%clk 0:01:13]}  Qh5 {[%clk 0:01:48]} 24. Qxe6 {[%clk 0:01:08]}  Qe8 {[%clk 0:01:30]} 25. Ra7 {[%clk 0:01:03]}  R4f6 {[%clk 0:01:27]} 26. Qc4 {[%clk 0:00:52]}  Nb6 {[%clk 0:01:19]} 27. Qxc7 {[%clk 0:00:49]}  Bd8 {[%clk 0:01:17]} 28. Qxb7 {[%clk 0:00:46]}  R6f7 {[%clk 0:01:17]} 29. Qa6 {[%clk 0:00:38]}  Rxa7 {[%clk 0:01:16]} 30. Qxa7 {[%clk 0:00:39]}  Qxb5 {[%clk 0:01:16]} 31. Rb1 {[%clk 0:00:30]}  Qc6 {[%clk 0:01:16]} 32. dxe5 {[%clk 0:00:30]}  dxe5 {[%clk 0:00:37]} 33. Nxe5 {[%clk 0:00:31]}  Qe6 {[%clk 0:00:38]} 34. Ndf3 {[%clk 0:00:29]}  Kg8 {[%clk 0:00:28]} 35. Qb7 {[%clk 0:00:26]}  Re8 {[%clk 0:00:24]} 36. Qc6 {[%clk 0:00:17]}  Qxc6 {[%clk 0:00:16]} 37. Nxc6 {[%clk 0:00:18]}  Bc7 {[%clk 0:00:17]} 38. e5 {[%clk 0:00:17]}  Nc4 {[%clk 0:00:17]} 39. Rb7 {[%clk 0:00:15]}  Bxe5 {[%clk 0:00:17]} 40. Nfxe5 {[%clk 0:00:14]}  Nxe5 {[%clk 0:00:17]} 41. Nxe5 {[%clk 0:00:14]}  Rxe5 {[%clk 0:00:17]} 42. Rc7 {[%clk 0:00:11]}  Re2 {[%clk 0:00:17]} 43. f3 {[%clk 0:00:11]}  Rc2 {[%clk 0:00:17]} 44. Kh2 {[%clk 0:00:11]}  Kf8 {[%clk 0:00:17]} 45. Kg3 {[%clk 0:00:11]}  Rc1 {[%clk 0:00:17]} 46. h4 {[%clk 0:00:12]}  Rc2 {[%clk 0:00:17]} 47. h5 {[%clk 0:00:11]}  Kg8 {[%clk 0:00:18]} 48. c4 {[%clk 0:00:12]}  Kf8 {[%clk 0:00:17]} 49. c5 {[%clk 0:00:12]}  Kg8 {[%clk 0:00:17]} 50. c6 {[%clk 0:00:12]}  Kh7 {[%clk 0:00:16]} 51. Rc8 {[%clk 0:00:12]}  Rc5 {[%clk 0:00:16]} 52. c7 {[%clk 0:00:12]}  Rc6 {[%clk 0:00:16]} 53. Kf4 {[%clk 0:00:12]}  Rc5 {[%clk 0:00:17]} 54. g4 {[%clk 0:00:12]}  g6 {[%clk 0:00:17]} 55. hxg6+ {[%clk 0:00:12]}  Kxg6 {[%clk 0:00:00]} 56. Rg8+ {[%clk 0:00:12]} 1-0


[Site "https://www.chess.com"]

[Event "Titled Tuesday Blitz July 11 Early 2023"]
[White "Zacurdajev, Dmitry"]
[Black "splendidkid"]
[WhiteFideId "4196309"]
[WhiteElo "2446"]
[BlackElo "2747"]
[Result "0-1"]
[Round "1"]
[TimeControl "180+2"]
[Date "2023.07.11"]
[WhiteClock "0:00:02"]
[BlackClock "0:01:52"]
[Board "67"]

1. d4 {[%clk 0:03:00]}  Nf6 {[%clk 0:02:56]} 2. c4 {[%clk 0:02:59]}  g6 {[%clk 0:02:56]} 3. Nc3 {[%clk 0:03:00]}  Bg7 {[%clk 0:02:57]} 4. e4 {[%clk 0:03:01]}  d6 {[%clk 0:02:57]} 5. Be2 {[%clk 0:03:01]}  O-O {[%clk 0:02:57]} 6. h4 {[%clk 0:03:00]}  h5 {[%clk 0:02:56]} 7. Bg5 {[%clk 0:02:56]}  Nh7 {[%clk 0:02:51]} 8. Be3 {[%clk 0:02:54]}  e5 {[%clk 0:02:50]} 9. d5 {[%clk 0:02:50]}  a5 {[%clk 0:02:47]} 10. Qd2 {[%clk 0:02:50]}  Na6 {[%clk 0:02:48]} 11. g4 {[%clk 0:02:45]}  Bxg4 {[%clk 0:02:45]} 12. Bxg4 {[%clk 0:02:45]}  hxg4 {[%clk 0:02:46]} 13. h5 {[%clk 0:02:46]}  g5 {[%clk 0:02:46]} 14. h6 {[%clk 0:02:46]}  Bh8 {[%clk 0:02:46]} 15. Nge2 {[%clk 0:02:43]}  Bf6 {[%clk 0:02:40]} 16. O-O-O {[%clk 0:02:34]}  Qd7 {[%clk 0:02:40]} 17. Rdg1 {[%clk 0:02:32]}  Be7 {[%clk 0:02:40]} 18. Ng3 {[%clk 0:02:32]}  f6 {[%clk 0:02:41]} 19. Nf5 {[%clk 0:02:31]}  Rf7 {[%clk 0:02:42]} 20. Rxg4 {[%clk 0:02:31]}  Nf8 {[%clk 0:02:42]} 21. Rhg1 {[%clk 0:01:49]}  Kh8 {[%clk 0:02:25]} 22. f4 {[%clk 0:01:41]}  exf4 {[%clk 0:02:25]} 23. Bxf4 {[%clk 0:01:41]}  Ng6 {[%clk 0:02:17]} 24. Be3 {[%clk 0:01:31]}  Kh7 {[%clk 0:02:15]} 25. Qf2 {[%clk 0:01:16]}  Ne5 {[%clk 0:02:11]} 26. Qe2 {[%clk 0:01:05]}  Nxg4 {[%clk 0:02:09]} 27. Qxg4 {[%clk 0:01:04]}  Re8 {[%clk 0:02:09]} 28. e5 {[%clk 0:00:49]}  fxe5 {[%clk 0:02:03]} 29. Rf1 {[%clk 0:00:15]}  Ref8 {[%clk 0:02:02]} 30. Bxg5 {[%clk 0:00:05]}  Rg8 {[%clk 0:01:58]} 31. Ne4 {[%clk 0:00:04]}  Nc5 {[%clk 0:01:54]} 32. Nxc5 {[%clk 0:00:03]}  dxc5 {[%clk 0:01:52]} 33. Bxe7 {[%clk 0:00:02]} 0-1


[Site "https://www.chess.com"]

[Event "Titled Tuesday Blitz July 11 Early 2023"]
[White "Gunina, Valentina"]
[Black "Kukreja Sankalp"]
[WhiteFideId "4167570"]
[BlackFideId "45027676"]
[WhiteElo "2745"]
[BlackElo "2446"]
[Result "0-1"]
[Round "1"]
[TimeControl "180+2"]
[Date "2023.07.11"]
[WhiteClock "0:00:35"]
[BlackClock "0:00:43"]
[Board "68"]

1. d4 {[%clk 0:03:00]}  d5 {[%clk 0:02:57]} 2. c4 {[%clk 0:03:00]}  c6 {[%clk 0:02:57]} 3. Nf3 {[%clk 0:03:00]}  Nf6 {[%clk 0:02:55]} 4. Nc3 {[%clk 0:02:59]}  dxc4 {[%clk 0:02:55]} 5. e4 {[%clk 0:02:59]}  b5 {[%clk 0:02:55]} 6. Be2 {[%clk 0:03:00]}  b4 {[%clk 0:02:50]} 7. e5 {[%clk 0:02:59]}  bxc3 {[%clk 0:02:49]} 8. exf6 {[%clk 0:02:59]}  cxb2 {[%clk 0:02:49]} 9. fxg7 {[%clk 0:02:57]}  bxa1=Q {[%clk 0:02:49]} 10. gxh8=Q {[%clk 0:02:57]}  Qa5+ {[%clk 0:02:02]} 11. Nd2 {[%clk 0:02:55]}  c3 {[%clk 0:01:57]} 12. O-O {[%clk 0:02:54]}  cxd2 {[%clk 0:01:54]} 13. Qxd2 {[%clk 0:02:55]}  Qxd2 {[%clk 0:01:53]} 14. Bxd2 {[%clk 0:02:54]}  Qxa2 {[%clk 0:01:53]} 15. Bh6 {[%clk 0:02:13]}  Qxe2 {[%clk 0:01:52]} 16. Qxf8+ {[%clk 0:02:12]}  Kd7 {[%clk 0:01:52]} 17. Qxf7 {[%clk 0:02:02]}  Ba6 {[%clk 0:01:49]} 18. Rc1 {[%clk 0:02:01]}  Qe6 {[%clk 0:01:15]} 19. Qxh7 {[%clk 0:02:00]}  Bc4 {[%clk 0:01:11]} 20. Bd2 {[%clk 0:01:50]}  Bd5 {[%clk 0:01:06]} 21. Re1 {[%clk 0:01:47]}  Qd6 {[%clk 0:01:06]} 22. Qd3 {[%clk 0:01:03]}  a5 {[%clk 0:00:54]} 23. h4 {[%clk 0:00:57]}  Na6 {[%clk 0:00:52]} 24. Bxa5 {[%clk 0:00:55]}  Nc7 {[%clk 0:00:50]} 25. Bxc7 {[%clk 0:00:52]}  Kxc7 {[%clk 0:00:47]} 26. g3 {[%clk 0:00:49]}  Ra3 {[%clk 0:00:45]} 27. Qh7 {[%clk 0:00:35]}  Rxg3+ {[%clk 0:00:43]} 0-1


[Site "https://www.chess.com"]

[Event "Titled Tuesday Blitz July 11 Early 2023"]
[White "Luo, Terry"]
[Black "Papasimakopoulos, Alexandros"]
[WhiteFideId "30931045"]
[BlackFideId "4244125"]
[WhiteElo "2442"]
[BlackElo "2743"]
[Result "1-0"]
[Round "1"]
[TimeControl "180+2"]
[Date "2023.07.11"]
[WhiteClock "0:00:41"]
[BlackClock "0:00:17"]
[Board "69"]

1. d4 {[%clk 0:02:59]}  Nf6 {[%clk 0:02:56]} 2. Nc3 {[%clk 0:02:58]}  d5 {[%clk 0:02:53]} 3. Bf4 {[%clk 0:02:58]}  a6 {[%clk 0:02:49]} 4. e3 {[%clk 0:02:58]}  Bf5 {[%clk 0:02:48]} 5. Bd3 {[%clk 0:02:58]}  Bg6 {[%clk 0:02:48]} 6. Nf3 {[%clk 0:02:55]}  e6 {[%clk 0:02:48]} 7. Ne5 {[%clk 0:02:47]}  Nbd7 {[%clk 0:02:43]} 8. O-O {[%clk 0:02:43]}  Bd6 {[%clk 0:02:37]} 9. Ne2 {[%clk 0:02:40]}  Qe7 {[%clk 0:02:32]} 10. c4 {[%clk 0:02:39]}  c6 {[%clk 0:02:31]} 11. c5 {[%clk 0:02:38]}  Bb8 {[%clk 0:02:30]} 12. b4 {[%clk 0:02:37]}  Nxe5 {[%clk 0:02:27]} 13. Bxe5 {[%clk 0:02:37]}  Bxe5 {[%clk 0:02:26]} 14. dxe5 {[%clk 0:02:38]}  Nd7 {[%clk 0:02:27]} 15. f4 {[%clk 0:02:38]}  O-O {[%clk 0:02:26]} 16. Nd4 {[%clk 0:02:38]}  Bxd3 {[%clk 0:02:25]} 17. Qxd3 {[%clk 0:02:37]}  f6 {[%clk 0:02:25]} 18. exf6 {[%clk 0:02:37]}  Rxf6 {[%clk 0:02:26]} 19. f5 {[%clk 0:02:22]}  Ne5 {[%clk 0:02:21]} 20. Qe2 {[%clk 0:02:16]}  exf5 {[%clk 0:02:15]} 21. Nxf5 {[%clk 0:02:17]}  Qe6 {[%clk 0:02:11]} 22. Nd6 {[%clk 0:02:18]}  Rxf1+ {[%clk 0:02:01]} 23. Rxf1 {[%clk 0:02:16]}  b6 {[%clk 0:02:01]} 24. e4 {[%clk 0:02:06]}  d4 {[%clk 0:01:54]} 25. Qd2 {[%clk 0:01:54]}  d3 {[%clk 0:01:49]} 26. Qf4 {[%clk 0:01:51]}  a5 {[%clk 0:01:39]} 27. a3 {[%clk 0:01:50]}  axb4 {[%clk 0:01:38]} 28. axb4 {[%clk 0:01:51]}  bxc5 {[%clk 0:01:36]} 29. bxc5 {[%clk 0:01:52]}  h6 {[%clk 0:01:36]} 30. h3 {[%clk 0:01:51]}  Nc4 {[%clk 0:01:31]} 31. Nf5 {[%clk 0:01:33]}  d2 {[%clk 0:01:22]} 32. Qc7 {[%clk 0:01:27]}  Qe5 {[%clk 0:01:11]} 33. Qxc6 {[%clk 0:01:01]}  Ra1 {[%clk 0:01:09]} 34. Ne7+ {[%clk 0:00:51]}  Qxe7 {[%clk 0:00:55]} 35. Qd5+ {[%clk 0:00:50]}  Kh7 {[%clk 0:00:33]} 36. Rxa1 {[%clk 0:00:50]}  Qh4 {[%clk 0:00:17]} 37. Qf5+ {[%clk 0:00:40]}  g6 {[%clk 0:00:18]} 38. Qf7+ {[%clk 0:00:39]}  Kh8 {[%clk 0:00:18]} 39. Ra8+ {[%clk 0:00:40]}  Qd8 {[%clk 0:00:17]} 40. Rxd8# {[%clk 0:00:41]} 1-0


[Site "https://www.chess.com"]

[Event "Titled Tuesday Blitz July 11 Early 2023"]
[White "Bykhovsky, Anatoly"]
[Black "Herman, Daniel"]
[WhiteFideId "2806991"]
[BlackFideId "30935008"]
[WhiteElo "2726"]
[BlackElo "2430"]
[Result "0-1"]
[Round "1"]
[TimeControl "180+2"]
[Date "2023.07.11"]
[WhiteClock "0:00:31"]
[BlackClock "0:00:50"]
[Board "74"]

1. d4 {[%clk 0:03:00]}  g6 {[%clk 0:03:00]} 2. e4 {[%clk 0:03:00]}  Bg7 {[%clk 0:03:00]} 3. Nc3 {[%clk 0:03:01]}  d6 {[%clk 0:03:01]} 4. f4 {[%clk 0:03:01]}  Nf6 {[%clk 0:03:00]} 5. Nf3 {[%clk 0:03:02]}  c5 {[%clk 0:02:59]} 6. dxc5 {[%clk 0:03:02]}  Qa5 {[%clk 0:02:57]} 7. Bd3 {[%clk 0:03:01]}  Qxc5 {[%clk 0:02:42]} 8. Qe2 {[%clk 0:03:00]}  O-O {[%clk 0:02:37]} 9. Be3 {[%clk 0:02:59]}  Qa5 {[%clk 0:02:35]} 10. Bd2 {[%clk 0:02:56]}  Qb6 {[%clk 0:02:33]} 11. e5 {[%clk 0:02:41]}  dxe5 {[%clk 0:02:33]} 12. fxe5 {[%clk 0:02:42]}  Nh5 {[%clk 0:02:17]} 13. O-O-O {[%clk 0:02:37]}  Nc6 {[%clk 0:02:07]} 14. Nd5 {[%clk 0:02:17]}  Qc5 {[%clk 0:02:06]} 15. c4 {[%clk 0:02:17]}  Bg4 {[%clk 0:01:18]} 16. b4 {[%clk 0:01:38]}  Bxf3 {[%clk 0:01:17]} 17. gxf3 {[%clk 0:01:39]}  Qd4 {[%clk 0:01:17]} 18. Bc3 {[%clk 0:01:39]}  Qh4 {[%clk 0:01:11]} 19. b5 {[%clk 0:01:01]}  Nf4 {[%clk 0:01:11]} 20. Qe3 {[%clk 0:00:46]}  Nxd5 {[%clk 0:01:02]} 21. cxd5 {[%clk 0:00:43]}  Bh6 {[%clk 0:01:03]} 22. Qxh6 {[%clk 0:00:38]}  Qxh6+ {[%clk 0:01:04]} 23. Bd2 {[%clk 0:00:39]}  Qh4 {[%clk 0:01:01]} 24. bxc6 {[%clk 0:00:37]}  bxc6 {[%clk 0:01:02]} 25. dxc6 {[%clk 0:00:36]}  Rac8 {[%clk 0:01:01]} 26. Be4 {[%clk 0:00:36]}  Rxc6+ {[%clk 0:00:50]} 27. Bxc6 {[%clk 0:00:36]}  Qc4+ {[%clk 0:00:50]} 28. Kb1 {[%clk 0:00:34]}  Rb8+ {[%clk 0:00:50]} 29. Ka1 {[%clk 0:00:31]}  Qd4+ {[%clk 0:00:50]} 0-1


[Site "https://www.chess.com"]